[Event "*** Titled Tuesday Blitz"]
[Site "Chess.com"]
[Date "2021.03.30"]
[Round "9"]
[White "monikarozman"]
[Black "canary2016"]
[Result "0-1"]
[WhiteElo "2197"]
[BlackElo "2036"]
[TimeControl "180+1"]
[EndTime "11:47:06 PDT"]
[Termination "canary2016 won on time"]

1. d4 {[%clk 0:03:00.9]} 1... d5 {[%clk 0:02:57.7]} 2. c4 {[%clk 0:02:57.3]}
2... c6 {[%clk 0:02:55.3]} 3. Nf3 {[%clk 0:02:55.4]} 3... Nf6 {[%clk 0:02:54.8]}
4. e3 {[%clk 0:02:47.3]} 4... Bf5 {[%clk 0:02:54]} 5. Nc3 {[%clk 0:02:35.9]}
5... e6 {[%clk 0:02:53.2]} 6. Qb3 {[%clk 0:02:13.4]} 6... Qc7 {[%clk 0:02:48.8]}
7. Nh4 {[%clk 0:02:12.9]} 7... Be4 {[%clk 0:02:48.2]} 8. f3 {[%clk 0:02:11.7]}
8... Bg6 {[%clk 0:02:47.7]} 9. Bd2 {[%clk 0:02:10.6]} 9... Be7 {[%clk
0:02:47.5]} 10. Nxg6 {[%clk 0:01:47.4]} 10... hxg6 {[%clk 0:02:45]} 11. cxd5
{[%clk 0:01:47.4]} 11... exd5 {[%clk 0:02:44.1]} 12. O-O-O {[%clk 0:01:46.3]}
12... Nbd7 {[%clk 0:02:43.4]} 13. Kb1 {[%clk 0:01:43.8]} 13... Qb6 {[%clk
0:02:38.6]} 14. Qc2 {[%clk 0:01:17.7]} 14... a5 {[%clk 0:02:36.2]} 15. Bd3
{[%clk 0:01:12.7]} 15... Qa7 {[%clk 0:02:30.7]} 16. Bc1 {[%clk 0:01:02.6]} 16...
a4 {[%clk 0:02:29.8]} 17. e4 {[%clk 0:00:57.2]} 17... a3 {[%clk 0:02:11.3]} 18.
b3 {[%clk 0:00:56.9]} 18... Bb4 {[%clk 0:02:09.2]} 19. exd5 {[%clk 0:00:51.1]}
19... Bxc3 {[%clk 0:02:05.3]} 20. Qxc3 {[%clk 0:00:50.7]} 20... Nxd5 {[%clk
0:02:04.6]} 21. Qe1+ {[%clk 0:00:43.7]} 21... Kf8 {[%clk 0:02:02]} 22. Bc4
{[%clk 0:00:40.1]} 22... N7b6 {[%clk 0:01:56.5]} 23. Bxd5 {[%clk 0:00:31.6]}
23... Nxd5 {[%clk 0:01:56]} 24. Rd3 {[%clk 0:00:24.3]} 24... Qa5 {[%clk
0:01:50.2]} 25. Qxa5 {[%clk 0:00:17.4]} 25... Rxa5 {[%clk 0:01:49.7]} 26. h4
{[%clk 0:00:18.2]} 26... Nb4 {[%clk 0:01:45.3]} 27. Re3 {[%clk 0:00:16.7]} 27...
b5 {[%clk 0:01:43.7]} 28. Bd2 {[%clk 0:00:15.5]} 28... Nd5 {[%clk 0:01:35.2]}
29. Re5 {[%clk 0:00:13.6]} 29... Ra6 {[%clk 0:01:29.7]} 30. g3 {[%clk
0:00:13.6]} 30... b4 {[%clk 0:01:27.7]} 31. Rhe1 {[%clk 0:00:13.3]} 31... Kg8
{[%clk 0:01:26.3]} 32. h5 {[%clk 0:00:12.6]} 32... gxh5 {[%clk 0:01:22.9]} 33.
g4 {[%clk 0:00:11.9]} 33... g6 {[%clk 0:01:13]} 34. g5 {[%clk 0:00:11.1]} 34...
Kg7 {[%clk 0:01:12.1]} 35. Kc2 {[%clk 0:00:10.2]} 35... Rd8 {[%clk 0:01:10.2]}
36. f4 {[%clk 0:00:10.3]} 36... Ra7 {[%clk 0:01:05.5]} 37. f5 {[%clk 0:00:10.3]}
37... gxf5 {[%clk 0:01:02.8]} 38. Rxf5 {[%clk 0:00:09.9]} 38... Rc7 {[%clk
0:01:01.1]} 39. Ref1 {[%clk 0:00:09.5]} 39... c5 {[%clk 0:01:00.6]} 40. dxc5
{[%clk 0:00:08.7]} 40... Rxc5+ {[%clk 0:01:00]} 41. Kb1 {[%clk 0:00:09.1]} 41...
Rc7 {[%clk 0:00:44.6]} 42. R5f3 {[%clk 0:00:04.9]} 42... Rcd7 {[%clk 0:00:43.5]}
43. Be1 {[%clk 0:00:04.6]} 43... Rc8 {[%clk 0:00:33.5]} 44. Bg3 {[%clk
0:00:04.2]} 44... Nc3+ {[%clk 0:00:31.7]} 45. Ka1 {[%clk 0:00:04]} 45... Rcd8
{[%clk 0:00:30.8]} 46. Be5+ {[%clk 0:00:03.7]} 46... Kg8 {[%clk 0:00:29.3]} 0-1

[Event "*** Titled Tuesday Blitz"]
[Site "Chess.com"]
[Date "2021.03.30"]
[Round "9"]
[White "maximnovik"]
[Black "Eternauta2400"]
[Result "0-1"]
[WhiteElo "2547"]
[BlackElo "2419"]
[TimeControl "180+1"]
[EndTime "11:47:07 PDT"]
[Termination "Eternauta2400 won on time"]

1. d4 {[%clk 0:02:42.3]} 1... Nf6 {[%clk 0:02:57.9]} 2. Bg5 {[%clk 0:02:41.6]}
2... g6 {[%clk 0:02:57.4]} 3. Bxf6 {[%clk 0:02:41.4]} 3... exf6 {[%clk
0:02:57.3]} 4. e3 {[%clk 0:02:41.9]} 4... Bg7 {[%clk 0:02:56]} 5. c4 {[%clk
0:02:42.4]} 5... O-O {[%clk 0:02:53.6]} 6. Nc3 {[%clk 0:02:42.9]} 6... f5 {[%clk
0:02:52.5]} 7. g3 {[%clk 0:02:43.2]} 7... c5 {[%clk 0:02:52.2]} 8. dxc5 {[%clk
0:02:41.4]} 8... Na6 {[%clk 0:02:37.6]} 9. Bg2 {[%clk 0:02:36.4]} 9... Nxc5
{[%clk 0:02:33.9]} 10. Nge2 {[%clk 0:02:35.7]} 10... d6 {[%clk 0:02:31.4]} 11.
O-O {[%clk 0:02:34.8]} 11... Re8 {[%clk 0:02:30.1]} 12. Rc1 {[%clk 0:02:28.6]}
12... a6 {[%clk 0:02:19.4]} 13. Qd2 {[%clk 0:02:27.7]} 13... Be6 {[%clk
0:02:13.4]} 14. b3 {[%clk 0:02:25.1]} 14... Rc8 {[%clk 0:02:09.6]} 15. Rfd1
{[%clk 0:02:23.4]} 15... Qa5 {[%clk 0:02:02.1]} 16. Rb1 {[%clk 0:02:04.4]} 16...
Qb4 {[%clk 0:01:56.3]} 17. Nd4 {[%clk 0:01:41.5]} 17... Bd7 {[%clk 0:01:46.6]}
18. a3 {[%clk 0:01:12.4]} 18... Qxa3 {[%clk 0:01:35.6]} 19. b4 {[%clk
0:01:01.4]} 19... Ne4 {[%clk 0:01:34.9]} 20. Bxe4 {[%clk 0:00:56.4]} 20... Rxc4
{[%clk 0:01:25]} 21. Bd5 {[%clk 0:00:20.1]} 21... Rxc3 {[%clk 0:01:19.4]} 22.
Ra1 {[%clk 0:00:12.3]} 22... Qxb4 {[%clk 0:01:16.3]} 23. Rdb1 {[%clk 0:00:12.4]}
23... Qc5 {[%clk 0:01:15.8]} 24. Rxb7 {[%clk 0:00:11.6]} 24... Qxd5 {[%clk
0:01:11.3]} 25. Rxd7 {[%clk 0:00:11.7]} 25... Rec8 {[%clk 0:01:03.7]} 26. Rd1
{[%clk 0:00:09.5]} 26... a5 {[%clk 0:00:58]} 27. Qe2 {[%clk 0:00:09.4]} 27...
Rc1 {[%clk 0:00:55.1]} 28. h4 {[%clk 0:00:08.4]} 28... Rxd1+ {[%clk 0:00:54.6]}
29. Qxd1 {[%clk 0:00:08.1]} 29... h5 {[%clk 0:00:53.2]} 30. Kh2 {[%clk 0:00:07]}
30... f4 {[%clk 0:00:44.5]} 31. gxf4 {[%clk 0:00:05.9]} 31... Bf6 {[%clk
0:00:44.6]} 32. f5 {[%clk 0:00:03.9]} 32... Qe4 {[%clk 0:00:36.5]} 33. fxg6
{[%clk 0:00:03.2]} 33... Qxh4+ {[%clk 0:00:36.3]} 34. Kg2 {[%clk 0:00:03.1]}
34... Qg4+ {[%clk 0:00:35.9]} 35. Qxg4 {[%clk 0:00:01.9]} 35... hxg4 {[%clk
0:00:36]} 36. gxf7+ {[%clk 0:00:02.4]} 36... Kg7 {[%clk 0:00:32.8]} 37. Ne6+
{[%clk 0:00:02.8]} 37... Kg6 {[%clk 0:00:32.8]} 38. f8=Q {[%clk 0:00:02.5]}
38... Rxf8 {[%clk 0:00:31.5]} 39. Nxf8+ {[%clk 0:00:02.4]} 39... Kf5 {[%clk
0:00:32]} 40. Ra7 {[%clk 0:00:02.5]} 40... Bc3 {[%clk 0:00:30.9]} 41. Nd7 {[%clk
0:00:02.7]} 41... Ke4 {[%clk 0:00:30.2]} 42. Nb6 {[%clk 0:00:03.1]} 42... d5
{[%clk 0:00:27.7]} 43. Ra6 {[%clk 0:00:02.2]} 43... d4 {[%clk 0:00:27]} 44. Nc4
{[%clk 0:00:02]} 44... d3 {[%clk 0:00:25.8]} 45. Nxa5 {[%clk 0:00:01.4]} 45...
d2 {[%clk 0:00:25.6]} 0-1

[Event "*** Titled Tuesday Blitz"]
[Site "Chess.com"]
[Date "2021.03.30"]
[Round "9"]
[White "pastouche06"]
[Black "GregShahade"]
[Result "0-1"]
[WhiteElo "2551"]
[BlackElo "2703"]
[TimeControl "180+1"]
[EndTime "11:47:11 PDT"]
[Termination "GregShahade won by resignation"]

1. d4 {[%clk 0:03:00.9]} 1... Nf6 {[%clk 0:02:59.7]} 2. c4 {[%clk 0:03:01.2]}
2... g6 {[%clk 0:03:00.3]} 3. f3 {[%clk 0:03:01]} 3... Nc6 {[%clk 0:02:59.4]} 4.
Nc3 {[%clk 0:02:59.9]} 4... d5 {[%clk 0:02:55.1]} 5. cxd5 {[%clk 0:02:52.1]}
5... Nxd5 {[%clk 0:02:56]} 6. e4 {[%clk 0:02:52.2]} 6... Nxc3 {[%clk 0:02:53.6]}
7. bxc3 {[%clk 0:02:53.1]} 7... e5 {[%clk 0:02:53.4]} 8. d5 {[%clk 0:02:48.7]}
8... Na5 {[%clk 0:02:53.7]} 9. Be3 {[%clk 0:02:44.3]} 9... c6 {[%clk 0:02:29.7]}
10. h4 {[%clk 0:02:29.2]} 10... Bg7 {[%clk 0:02:18.3]} 11. h5 {[%clk 0:02:24.8]}
11... O-O {[%clk 0:02:18.4]} 12. hxg6 {[%clk 0:01:48]} 12... hxg6 {[%clk
0:02:17.5]} 13. Qd2 {[%clk 0:01:28.9]} 13... cxd5 {[%clk 0:02:07.6]} 14. exd5
{[%clk 0:01:25.2]} 14... e4 {[%clk 0:01:56.1]} 15. Bh6 {[%clk 0:01:10.5]} 15...
e3 {[%clk 0:01:46.2]} 16. Bxe3 {[%clk 0:01:03.4]} 16... Re8 {[%clk 0:01:42.1]}
17. Kf2 {[%clk 0:01:01.6]} 17... Qc7 {[%clk 0:01:24.7]} 18. Bd4 {[%clk
0:00:57.7]} 18... Nc4 {[%clk 0:00:55.2]} 19. Bxc4 {[%clk 0:00:54.8]} 19... Qxc4
{[%clk 0:00:56.1]} 20. Bxg7 {[%clk 0:00:54.4]} 20... Kxg7 {[%clk 0:00:56.6]} 21.
Ne2 {[%clk 0:00:34.4]} 21... Bd7 {[%clk 0:00:29.5]} 22. Qh6+ {[%clk 0:00:26.6]}
22... Kf6 {[%clk 0:00:29.8]} 23. Rae1 {[%clk 0:00:18.8]} 23... Bb5 {[%clk
0:00:13]} 24. Nd4 {[%clk 0:00:13.4]} 24... Qxa2+ {[%clk 0:00:12.1]} 25. Kg3
{[%clk 0:00:13.2]} 25... Rxe1 {[%clk 0:00:12.1]} 26. Rxe1 {[%clk 0:00:11.6]}
26... Qxd5 {[%clk 0:00:11.2]} 27. Qf4+ {[%clk 0:00:05.8]} 27... Kg7 {[%clk
0:00:09.2]} 28. Re7 {[%clk 0:00:05.9]} 28... Be8 {[%clk 0:00:03.2]} 29. Qe3
{[%clk 0:00:05.8]} 29... Bc6 {[%clk 0:00:02.1]} 30. Ne6+ {[%clk 0:00:04.3]}
30... Kg8 {[%clk 0:00:01.8]} 31. Nc7 {[%clk 0:00:04.5]} 31... Qd6+ {[%clk
0:00:02]} 32. Qe5 {[%clk 0:00:04.4]} 32... Qxe5+ {[%clk 0:00:00.7]} 33. Rxe5
{[%clk 0:00:05.3]} 33... Rc8 {[%clk 0:00:01.2]} 34. Nd5 {[%clk 0:00:05.5]} 34...
Bxd5 {[%clk 0:00:01.7]} 35. Rxd5 {[%clk 0:00:06.4]} 35... Rxc3 {[%clk
0:00:02.2]} 36. Rd7 {[%clk 0:00:06.6]} 36... Rb3 {[%clk 0:00:02.5]} 37. Rd8+
{[%clk 0:00:07]} 37... Kg7 {[%clk 0:00:02.6]} 38. Rd7 {[%clk 0:00:07.9]} 38...
a5 {[%clk 0:00:03.1]} 39. Kf4 {[%clk 0:00:08.4]} 39... a4 {[%clk 0:00:03.5]} 40.
Rd4 {[%clk 0:00:09]} 40... a3 {[%clk 0:00:03.9]} 41. Ra4 {[%clk 0:00:08.6]}
41... b5 {[%clk 0:00:04.5]} 42. Ra5 {[%clk 0:00:09.1]} 42... b4 {[%clk
0:00:04.9]} 0-1

[Event "*** Titled Tuesday Blitz"]
[Site "Chess.com"]
[Date "2021.03.30"]
[Round "9"]
[White "szachuspl"]
[Black "azikom"]
[Result "1-0"]
[WhiteElo "2562"]
[BlackElo "2683"]
[TimeControl "180+1"]
[EndTime "11:47:11 PDT"]
[Termination "szachuspl won on time"]

1. d4 {[%clk 0:03:00.9]} 1... d5 {[%clk 0:02:59.6]} 2. c4 {[%clk 0:03:00.9]}
2... e6 {[%clk 0:03:00.1]} 3. Nc3 {[%clk 0:03:01.2]} 3... c6 {[%clk 0:03:00.6]}
4. Nf3 {[%clk 0:03:01.3]} 4... dxc4 {[%clk 0:03:00.1]} 5. a4 {[%clk 0:02:59.8]}
5... Bb4 {[%clk 0:02:58.7]} 6. e3 {[%clk 0:02:59.8]} 6... b5 {[%clk 0:02:58.3]}
7. Bd2 {[%clk 0:02:59.7]} 7... Bb7 {[%clk 0:02:57.6]} 8. axb5 {[%clk 0:02:57.7]}
8... Bxc3 {[%clk 0:02:56.9]} 9. bxc3 {[%clk 0:02:57]} 9... cxb5 {[%clk
0:02:57.4]} 10. Qb1 {[%clk 0:02:56.9]} 10... a6 {[%clk 0:02:50.4]} 11. Ne5
{[%clk 0:02:45.7]} 11... Nd7 {[%clk 0:02:35.8]} 12. Nxc4 {[%clk 0:02:44.5]}
12... Ndf6 {[%clk 0:02:12.1]} 13. Na5 {[%clk 0:02:35.3]} 13... Be4 {[%clk
0:02:10.2]} 14. Qb2 {[%clk 0:02:26.4]} 14... Ne7 {[%clk 0:02:08.6]} 15. f3
{[%clk 0:02:26.7]} 15... Bg6 {[%clk 0:02:07.5]} 16. Be2 {[%clk 0:02:24.9]} 16...
O-O {[%clk 0:02:03.9]} 17. O-O {[%clk 0:02:23.8]} 17... Nfd5 {[%clk 0:01:59]}
18. e4 {[%clk 0:02:20.7]} 18... Nb6 {[%clk 0:01:58.4]} 19. Be3 {[%clk
0:02:20.6]} 19... Qc7 {[%clk 0:01:57]} 20. Rfc1 {[%clk 0:02:19.1]} 20... Rfb8
{[%clk 0:01:54.3]} 21. Qa2 {[%clk 0:02:12.4]} 21... Na4 {[%clk 0:01:49.5]} 22.
Nc4 {[%clk 0:01:49.8]} 22... f6 {[%clk 0:01:09.3]} 23. g3 {[%clk 0:01:34.3]}
23... Bf7 {[%clk 0:01:01.8]} 24. Qa3 {[%clk 0:01:24.3]} 24... e5 {[%clk
0:00:23.4]} 25. Nd6 {[%clk 0:01:16.7]} 25... b4 {[%clk 0:00:21.4]} 26. Qxa4
{[%clk 0:01:05.7]} 26... Qxd6 {[%clk 0:00:21.1]} 27. d5 {[%clk 0:00:53.1]} 27...
Be8 {[%clk 0:00:11.1]} 28. Qa5 {[%clk 0:00:46.2]} 28... bxc3 {[%clk 0:00:10.2]}
29. Qxc3 {[%clk 0:00:44.2]} 29... Bb5 {[%clk 0:00:09.8]} 30. Bc5 {[%clk
0:00:39.9]} 30... Qd7 {[%clk 0:00:09.6]} 31. Bxb5 {[%clk 0:00:38.9]} 31... Rxb5
{[%clk 0:00:08.8]} 32. Bf2 {[%clk 0:00:37.1]} 32... Ng6 {[%clk 0:00:06.2]} 33.
Qc7 {[%clk 0:00:33.8]} 33... Nf8 {[%clk 0:00:04.7]} 34. Qxd7 {[%clk 0:00:32.7]}
34... Nxd7 {[%clk 0:00:04.5]} 35. Rc7 {[%clk 0:00:33.3]} 35... Nf8 {[%clk
0:00:04]} 36. Ra2 {[%clk 0:00:33]} 36... a5 {[%clk 0:00:03.8]} 37. Kg2 {[%clk
0:00:26.7]} 37... a4 {[%clk 0:00:02.4]} 38. Bc5 {[%clk 0:00:19.9]} 38... Ng6
{[%clk 0:00:01.7]} 39. h4 {[%clk 0:00:19.2]} 39... h5 {[%clk 0:00:01.3]} 40. d6
{[%clk 0:00:18.1]} 1-0

[Event "*** Titled Tuesday Blitz"]
[Site "Chess.com"]
[Date "2021.03.30"]
[Round "9"]
[White "Lion-Al-Messi"]
[Black "MatyChess1"]
[Result "1-0"]
[WhiteElo "2512"]
[BlackElo "2612"]
[TimeControl "180+1"]
[EndTime "11:47:11 PDT"]
[Termination "Lion-Al-Messi won by resignation"]

1. e4 {[%clk 0:02:59.8]} 1... c5 {[%clk 0:03:00.3]} 2. Nc3 {[%clk 0:03:00.7]}
2... d6 {[%clk 0:03:00.3]} 3. Nf3 {[%clk 0:03:01.6]} 3... Nf6 {[%clk 0:02:59.8]}
4. d4 {[%clk 0:03:02.5]} 4... cxd4 {[%clk 0:02:59.9]} 5. Nxd4 {[%clk 0:03:03.4]}
5... a6 {[%clk 0:03:00.2]} 6. h3 {[%clk 0:03:02.8]} 6... e5 {[%clk 0:03:00.2]}
7. Nde2 {[%clk 0:03:02.6]} 7... h5 {[%clk 0:03:00.7]} 8. Bg5 {[%clk 0:03:02.1]}
8... Be6 {[%clk 0:03:01.4]} 9. Ng3 {[%clk 0:03:02.2]} 9... g6 {[%clk 0:02:55.8]}
10. Be2 {[%clk 0:03:00]} 10... Nbd7 {[%clk 0:02:53.4]} 11. Qd2 {[%clk
0:02:57.8]} 11... Qc7 {[%clk 0:02:45.6]} 12. Rd1 {[%clk 0:02:56.1]} 12... b5
{[%clk 0:02:39.9]} 13. a3 {[%clk 0:02:52.2]} 13... Rc8 {[%clk 0:02:37.3]} 14. f4
{[%clk 0:02:33.6]} 14... exf4 {[%clk 0:02:05.6]} 15. Qxf4 {[%clk 0:02:34.5]}
15... Be7 {[%clk 0:02:04.5]} 16. O-O {[%clk 0:02:34.3]} 16... Nh7 {[%clk
0:00:51.3]} 17. Bxe7 {[%clk 0:02:18.1]} 17... Kxe7 {[%clk 0:00:51]} 18. Nd5+
{[%clk 0:02:04.2]} 18... Bxd5 {[%clk 0:00:50.1]} 19. Rxd5 {[%clk 0:02:05.1]}
19... Nhf6 {[%clk 0:00:45.8]} 20. Rd2 {[%clk 0:02:04.1]} 20... Qc5+ {[%clk
0:00:44.8]} 21. Kh2 {[%clk 0:02:03.5]} 21... Qe5 {[%clk 0:00:44.8]} 22. Bd3
{[%clk 0:01:53.7]} 22... Qxf4 {[%clk 0:00:43.7]} 23. Rxf4 {[%clk 0:01:54.6]}
23... Ne5 {[%clk 0:00:44.6]} 24. Ne2 {[%clk 0:01:52.4]} 24... Rc5 {[%clk
0:00:39.3]} 25. Nd4 {[%clk 0:01:52.2]} 25... Rb8 {[%clk 0:00:36.7]} 26. Rdf2
{[%clk 0:01:50.7]} 26... Nfd7 {[%clk 0:00:36]} 27. Ne2 {[%clk 0:01:45.2]} 27...
b4 {[%clk 0:00:29]} 28. axb4 {[%clk 0:01:43.9]} 28... Rxb4 {[%clk 0:00:29.9]}
29. b3 {[%clk 0:01:44.5]} 29... a5 {[%clk 0:00:30.1]} 30. Bc4 {[%clk 0:01:38.8]}
30... f6 {[%clk 0:00:29.1]} 31. Nc3 {[%clk 0:01:36.7]} 31... a4 {[%clk
0:00:10.6]} 32. Nd5+ {[%clk 0:01:33.1]} 32... Rxd5 {[%clk 0:00:10.7]} 33. Bxd5
{[%clk 0:01:22.6]} 33... a3 {[%clk 0:00:08.4]} 34. c3 {[%clk 0:01:20.6]} 34...
Rb6 {[%clk 0:00:05.9]} 35. Ra2 {[%clk 0:01:19.7]} 35... Ra6 {[%clk 0:00:06.2]}
36. b4 {[%clk 0:01:17.2]} 36... Nb6 {[%clk 0:00:05.5]} 37. Bb3 {[%clk
0:01:16.1]} 37... Ra8 {[%clk 0:00:05.6]} 38. Rf1 {[%clk 0:01:13.1]} 38... Rc8
{[%clk 0:00:05.8]} 39. Rc1 {[%clk 0:01:10.5]} 39... Ra8 {[%clk 0:00:05.2]} 40.
Bd5 {[%clk 0:01:09]} 40... Nxd5 {[%clk 0:00:03.9]} 41. exd5 {[%clk 0:01:09.9]}
41... Nc4 {[%clk 0:00:04.4]} 42. Re1+ {[%clk 0:01:08.2]} 42... Kf7 {[%clk
0:00:04]} 43. Re4 {[%clk 0:01:07.9]} 43... Rc8 {[%clk 0:00:03.6]} 44. Rxc4
{[%clk 0:01:07.5]} 44... Rxc4 {[%clk 0:00:04.5]} 45. Rxa3 {[%clk 0:01:08.1]}
45... f5 {[%clk 0:00:05.1]} 46. Kg3 {[%clk 0:01:06.9]} 46... Kf6 {[%clk
0:00:05.3]} 47. Rb3 {[%clk 0:01:05.8]} 47... Ke5 {[%clk 0:00:04.8]} 48. b5
{[%clk 0:01:06.1]} 48... Kxd5 {[%clk 0:00:04.8]} 49. b6 {[%clk 0:01:06]} 49...
Rc8 {[%clk 0:00:05.4]} 50. b7 {[%clk 0:01:06.5]} 50... Rb8 {[%clk 0:00:05.8]}
51. Kf4 {[%clk 0:01:06.1]} 51... Kc4 {[%clk 0:00:03.6]} 52. Rb1 {[%clk
0:01:03.5]} 52... d5 {[%clk 0:00:03.9]} 53. Ke5 {[%clk 0:01:02.5]} 53... h4
{[%clk 0:00:04.5]} 54. Kd6 {[%clk 0:01:00.9]} 54... f4 {[%clk 0:00:04.7]} 55.
Kc7 {[%clk 0:01:00.8]} 55... Rxb7+ {[%clk 0:00:05.2]} 56. Rxb7 {[%clk
0:00:59.4]} 56... Kxc3 {[%clk 0:00:06.1]} 57. Kd6 {[%clk 0:00:54.6]} 57... d4
{[%clk 0:00:07]} 58. Ke5 {[%clk 0:00:54.7]} 58... d3 {[%clk 0:00:07.6]} 59. Kxf4
{[%clk 0:00:54.8]} 59... d2 {[%clk 0:00:07.9]} 60. Rd7 {[%clk 0:00:55.3]} 60...
Kb2 {[%clk 0:00:08.2]} 61. Kg4 {[%clk 0:00:55.1]} 61... Kc2 {[%clk 0:00:08]} 62.
Kxh4 {[%clk 0:00:55.3]} 62... d1=Q {[%clk 0:00:08.6]} 63. Rxd1 {[%clk
0:00:55.4]} 63... Kxd1 {[%clk 0:00:09.5]} 64. Kg5 {[%clk 0:00:56]} 1-0

[Event "*** Titled Tuesday Blitz"]
[Site "Chess.com"]
[Date "2021.03.30"]
[Round "9"]
[White "Chessbard1972"]
[Black "gvanna"]
[Result "0-1"]
[WhiteElo "2237"]
[BlackElo "2388"]
[TimeControl "180+1"]
[EndTime "11:47:12 PDT"]
[Termination "gvanna won on time"]

1. e4 {[%clk 0:03:00.9]} 1... c5 {[%clk 0:02:59.6]} 2. Nf3 {[%clk 0:02:55.8]}
2... g6 {[%clk 0:02:58.9]} 3. Bc4 {[%clk 0:02:54.8]} 3... Bg7 {[%clk 0:02:58.5]}
4. c3 {[%clk 0:02:54.5]} 4... Nc6 {[%clk 0:02:57.4]} 5. Qb3 {[%clk 0:02:49.3]}
5... e6 {[%clk 0:02:56.4]} 6. Qc2 {[%clk 0:02:42.6]} 6... Nge7 {[%clk
0:02:55.2]} 7. O-O {[%clk 0:02:41.8]} 7... O-O {[%clk 0:02:54.8]} 8. d3 {[%clk
0:02:34.2]} 8... d5 {[%clk 0:02:54.5]} 9. Bb5 {[%clk 0:02:34.1]} 9... a6 {[%clk
0:02:53.1]} 10. Bxc6 {[%clk 0:02:33.5]} 10... Nxc6 {[%clk 0:02:54]} 11. Bg5
{[%clk 0:02:29.9]} 11... Qd6 {[%clk 0:02:49.6]} 12. Nbd2 {[%clk 0:02:28.2]}
12... b5 {[%clk 0:02:48.9]} 13. Rad1 {[%clk 0:02:25.8]} 13... Bb7 {[%clk
0:02:48.2]} 14. Rfe1 {[%clk 0:02:25.3]} 14... Rac8 {[%clk 0:02:43.6]} 15. Bh4
{[%clk 0:02:24.1]} 15... b4 {[%clk 0:02:40.5]} 16. Bg3 {[%clk 0:02:23.4]} 16...
Qd7 {[%clk 0:02:40]} 17. e5 {[%clk 0:02:22]} 17... bxc3 {[%clk 0:02:32.2]} 18.
bxc3 {[%clk 0:02:21.4]} 18... d4 {[%clk 0:02:30.4]} 19. c4 {[%clk 0:02:20.3]}
19... Nb4 {[%clk 0:02:25.3]} 20. Qb3 {[%clk 0:02:19]} 20... Bc6 {[%clk
0:02:25.5]} 21. Qa3 {[%clk 0:02:11.4]} 21... Nc2 {[%clk 0:02:22.4]} 22. Qxa6
{[%clk 0:02:07.5]} 22... Nxe1 {[%clk 0:02:22]} 23. Rxe1 {[%clk 0:02:07.4]} 23...
Ra8 {[%clk 0:02:21.3]} 24. Qb6 {[%clk 0:02:06.3]} 24... Rfc8 {[%clk 0:02:10.5]}
25. Nb3 {[%clk 0:02:01]} 25... Bf8 {[%clk 0:02:07.3]} 26. Ng5 {[%clk 0:01:54.9]}
26... Rcb8 {[%clk 0:02:06.2]} 27. Nxc5 {[%clk 0:01:51.6]} 27... Rxb6 {[%clk
0:02:05.9]} 28. Nxd7 {[%clk 0:01:50.8]} 28... Bxd7 {[%clk 0:02:06.3]} 29. Ne4
{[%clk 0:01:49.5]} 29... Rxa2 {[%clk 0:02:05.8]} 30. Nf6+ {[%clk 0:01:48.2]}
30... Kg7 {[%clk 0:02:05.8]} 31. Nxd7 {[%clk 0:01:48.1]} 31... Rb3 {[%clk
0:02:05]} 32. h4 {[%clk 0:01:26.3]} 32... Rxd3 {[%clk 0:02:03.9]} 33. h5 {[%clk
0:01:25.9]} 33... gxh5 {[%clk 0:02:03.8]} 34. Bh4 {[%clk 0:01:16.8]} 34... Rda3
{[%clk 0:02:02.3]} 35. Bf6+ {[%clk 0:01:12.6]} 35... Kg8 {[%clk 0:02:02.4]} 36.
Re4 {[%clk 0:01:09.2]} 36... d3 {[%clk 0:01:43.7]} 37. Rd4 {[%clk 0:01:02.2]}
37... d2 {[%clk 0:01:35.1]} 38. Kh2 {[%clk 0:01:01.2]} 38... Bb4 {[%clk
0:01:26.4]} 39. c5 {[%clk 0:00:54.6]} 39... Ra4 {[%clk 0:01:15.1]} 40. c6 {[%clk
0:00:52.1]} 40... Ba5 {[%clk 0:01:14.9]} 41. Rd3 {[%clk 0:00:43]} 41... R2a3
{[%clk 0:01:14.1]} 42. Rd6 {[%clk 0:00:40]} 42... Rc4 {[%clk 0:00:55.1]} 43. Bg5
{[%clk 0:00:21]} 43... Rc2 {[%clk 0:00:38.7]} 44. Bf6 {[%clk 0:00:17.1]} 44...
h6 {[%clk 0:00:38.6]} 45. Nb8 {[%clk 0:00:15.3]} 45... Bc7 {[%clk 0:00:35.3]}
46. Rd7 {[%clk 0:00:12.4]} 46... Bxb8 {[%clk 0:00:35.7]} 47. Rd8+ {[%clk
0:00:12.3]} 47... Kh7 {[%clk 0:00:35.8]} 48. Rxb8 {[%clk 0:00:11]} 48... d1=Q
{[%clk 0:00:35.3]} 49. Rh8+ {[%clk 0:00:06.5]} 49... Kg6 {[%clk 0:00:35.2]} 50.
Rg8+ {[%clk 0:00:06.7]} 50... Kf5 {[%clk 0:00:35.7]} 51. g4+ {[%clk 0:00:03.6]}
51... hxg4 {[%clk 0:00:35.5]} 0-1